fUSD/lending_fUSD_20250322
["ID","MTS","AMOUNT","RATE_DAILY","PERIOD"]
[356526684,1742614239147,-500.0,0.00046575,120]
[356526685,1742614239157,-500.0,0.00046575,120]
[356526686,1742614239168,-561.34,0.00046575,120]
[356526687,1742614239178,-500.0,0.00046575,120]
[356526688,1742614239188,-500.0,0.00046575,120]
[356526689,1742614239198,-500.0,0.00046575,120]
[356526690,1742614239207,-588.49,0.00046575,120]
[356526691,1742614239217,-857.07,0.00046575,120]
[356526692,1742614239226,-300.17356211,0.00046575,120]
[356526695,1742614239756,-199.82643789,0.00046575,120]
[356526696,1742614239766,-189.51106249,0.00046575,120]
[356526697,1742614239777,-310.48893751,0.00046575,120]
[356526698,1742614239787,-344.79402155,0.00046575,120]
[356526699,1742614239798,-155.20597845,0.00046575,120]
[356526700,1742614239807,-282.84792178,0.00046575,120]
[356526701,1742614239819,-322.27207822,0.00046575,120]
[356526702,1742614239828,-987.82,0.00046575,120]
[356526703,1742614239838,-1372.16,0.00046575,120]
[356526704,1742614239847,-500.0,0.00046575,120]
[356526705,1742614239857,-500.0,0.00046575,120]
[356526706,1742614239866,-500.0,0.00046575,120]
[356526707,1742614239876,-500.0,0.00046575,120]
[356526708,1742614239886,-318.79406518,0.00046575,120]
[356526709,1742614240089,-181.20593482,0.00046575,120]
[356526710,1742614240099,-812.1,0.00046575,120]
[356526711,1742614240108,-500.0,0.00046575,120]
[356526712,1742614240117,-500.0,0.00046575,120]
[356526713,1742614240126,-645.8,0.00046575,120]
[356526714,1742614240135,-500.0,0.00046575,120]
[356526715,1742614240144,-1302.08,0.00046575,120]
[356526716,1742614240153,-31.4324382,0.00046575,120]
[356526717,1742614240165,-468.5675618,0.00046575,120]
[356526718,1742614240175,-500.0,0.00046575,120]
[356526719,1742614240184,-300.0,0.00046575,2]
[356526720,1742614240193,-221.72743819,0.00046575,120]
[356526721,1742614240205,-701.51256181,0.00046575,120]
[356526723,1742614240214,-500.0,0.00046575,120]
[356526725,1742614240223,-500.0,0.00046575,120]
[356526727,1742614240233,-500.0,0.00046575,120]
[356526729,1742614240242,-873.09,0.00046575,120]
[356526731,1742614240251,-500.0,0.00046575,120]
[356526733,1742614240261,-499.47777861,0.00046575,120]
[356526735,1742614240270,-500.0,0.00046575,120]
[356526737,1742614240279,-1433.02,0.00046575,120]
[356526739,1742614240289,-500.0,0.00046575,120]
[356526741,1742614240298,-1432.95696658,0.00046575,120]
[356526745,1742614240318,-78.47303342,0.00046575,120]
[356526746,1742614240327,-500.0,0.00046575,120]
[356526747,1742614240336,-500.0,0.00046575,120]
[356526748,1742614240346,-500.0,0.00046575,120]
[356526749,1742614240355,-500.0,0.00046575,120]
[356526750,1742614240364,-500.0,0.00046575,120]
[356526751,1742614240373,-500.0,0.00046575,120]
[356526753,1742614240382,-708.35,0.00046575,120]
[356526754,1742614240392,-500.0,0.00046575,120]
[356526755,1742614240401,-518.15,0.00046575,120]
[356526756,1742614240410,-571.32,0.00046575,120]
[356526757,1742614240419,-500.0,0.00046575,120]
[356526758,1742614240428,-611.86,0.00046575,120]
[356526759,1742614240438,-635.59,0.00046575,120]
[356526760,1742614240447,-384.3054592,0.00046575,120]
[356526762,1742614242870,-183.8545408,0.00046575,120]
[356526763,1742614242879,-500.0,0.00046575,120]
[356526764,1742614242887,-186.70507302,0.00046575,120]
[356526766,1742614243779,-313.29492698,0.00046575,120]
[356526767,1742614243788,-500.0,0.00046575,120]
[356526768,1742614243800,-805.73,0.00046575,120]
[356526769,1742614243809,-500.0,0.00046575,120]
[356526770,1742614243818,-628.44,0.00046575,120]
[356526771,1742614243827,-500.0,0.00046575,120]
[356526772,1742614243837,-500.0,0.00046575,120]
[356526773,1742614243846,-979.62,0.00046575,120]
[356526774,1742614243855,-672.73,0.00046575,120]
[356526775,1742614243864,-500.0,0.00046575,120]
[356526776,1742614243873,-1448.23,0.00046575,120]
[356526777,1742614243882,-500.0,0.00046575,120]
[356526778,1742614243892,-500.0,0.00046575,120]
[356526779,1742614243902,-500.0,0.00046575,120]
[356526780,1742614243911,-1580.47,0.00046575,10]
[356526781,1742614243920,-828.96,0.00046575,120]
[356526782,1742614243930,-500.0,0.00046575,120]
[356526783,1742614243939,-500.0,0.00046575,120]
[356526784,1742614243948,-500.0,0.00046575,120]
[356526785,1742614243957,-722.22,0.00046575,120]
[356526786,1742614243967,-500.0,0.00046575,120]
[356526787,1742614243976,-500.0,0.00046575,120]
[356526788,1742614243986,-500.0,0.00046575,120]
[356526789,1742614243995,-500.0,0.00046575,120]
[356526790,1742614244004,-317.04,0.00046575,120]
[356526791,1742614244013,-500.0,0.00046575,120]
[356526792,1742614244022,-308.04,0.00046575,7]
[356526793,1742614244032,-500.0,0.00046575,120]
[356526794,1742614244041,-500.0,0.00046575,120]
[356526795,1742614244050,-500.0,0.00046575,120]
[356526796,1742614244059,-500.0,0.00046575,120]
[356526797,1742614244068,-500.0,0.00046575,120]
[356526798,1742614244078,-500.0,0.00046575,120]
[356526799,1742614244087,-500.0,0.00046575,120]
[356526800,1742614244096,-500.0,0.00046575,120]
[356526801,1742614244105,-500.0,0.00046575,120]
[356526802,1742614244115,-172.23909134,0.00046575,120]
[356526803,1742614244124,-832.06,0.00046575,120]
[356526804,1742614244133,-759.37,0.00046575,120]
[356526805,1742614244142,-1021.24,0.00046575,120]
[356526806,1742614244151,-500.0,0.00046575,120]
[356526807,1742614244161,-903.68,0.00046575,120]
[356526808,1742614244170,-572.59768532,0.00046575,120]
[356526809,1742614244179,-869.35,0.00046575,120]
[356526810,1742614244188,-500.0,0.00046575,120]
[356526811,1742614244198,-641.62156555,0.00046575,120]
[356526812,1742614244207,-886.67,0.00046575,120]
[356526813,1742614244216,-517.92,0.00046575,120]
[356526814,1742614244226,-721.42,0.00046575,120]
[356526815,1742614244235,-115.39746047,0.00046575,120]
[356526817,1742614245895,-461.2229,0.00046375,2]
[356526818,1742614245904,-775.9771,0.00046375,2]
[356526819,1742614246063,-252.71462698,0.00046375,2]
[356526820,1742614246120,-656.60300001,0.00046375,2]
[356526821,1742614246131,-5597.82971983,0.00046375,2]
[356526832,1742614695362,2000.0,0.00031338,30]
[356526860,1742615431842,-7302.27586152,0.00032419,2]
[356526861,1742615431851,-150.13103108,0.000334,2]
[356526862,1742615431860,-153.81,0.000335,31]
[356526863,1742615431870,-350.0,0.0003665,2]
[356526864,1742615431879,-350.0,0.0003685,2]
[356526865,1742615431890,-150.0,0.0003685,2]
[356526866,1742615431900,-153.81,0.000398,31]
[356526867,1742615431910,-153.81,0.000398,31]
[356526868,1742615431920,-150.0,0.0004,5]
[356526869,1742615431929,-200.0,0.00041,2]
[356526870,1742615431939,-160.46565614,0.00044458,2]
[356526871,1742615431948,-163.22,0.00044957,2]
[356526872,1742615431957,-374.42,0.00044979,2]
[356526873,1742615431967,-157.0,0.00045,90]
[356526874,1742615431978,-524.30816663,0.00045005,2]
[356526875,1742615431988,-195.79,0.00045007,2]
[356526876,1742615431997,-250.0,0.00045026,2]
[356526877,1742615432007,-157.64,0.00045133,2]
[356526878,1742615432017,-1000.0,0.00045172,2]
[356526879,1742615432026,-185.11,0.00045325,2]
[356526880,1742615432035,-163.22,0.00045406,2]
[356526881,1742615432047,-297.38803826,0.00045448,10]
[356526882,1742615432077,-813.6090846,0.00045448,10]
[356526883,1742615432086,-1077.66875983,0.00045448,10]
[356526884,1742615432095,-1500.0,0.00045582,2]
[356526885,1742615432104,-162.3,0.00045597,2]
[356526886,1742615432114,-186.32,0.00045623,120]
[356526887,1742615432124,-157.0,0.00045685,90]
[356526888,1742615432133,-280.42057705,0.00045697,2]
[356526889,1742615432142,-183.2116009,0.00045709,4]
[356526890,1742615432152,-163.22,0.00045856,2]
[356526891,1742615432161,-3291.7396139,0.0004588,2]
[356526892,1742615432171,-207.03082725,0.000459,10]
[356526893,1742615432180,-200.0,0.00046,2]
[356526894,1742615432189,-848.99669021,0.00046,60]
[356526895,1742615432199,-153.81,0.000461,39]
[356526896,1742615432208,-153.81,0.000461,39]
[356526897,1742615432217,-2276.15385483,0.000463,2]
[356526898,1742615432227,-163.22,0.00046305,2]
[356526899,1742615432237,-302.0,0.00046347,2]
[356526900,1742615432246,-508.60038669,0.00046375,120]
[356526901,1742615432256,-500.0,0.00046375,120]
[356526902,1742615432265,-500.0,0.00046375,120]
[356526903,1742615432275,-157.825,0.00046375,77]
[356526904,1742615432284,-18531.36378414,0.00046375,2]
[356526905,1742615432296,-2119.34006904,0.00046375,2]
[356526906,1742615432305,-8888.89598653,0.00046455,2]
[356526907,1742615432315,-2799.43448662,0.00046464,2]
[356526908,1742615432324,-490.16420856,0.00046464,7]
[356526909,1742615432334,-158.14283308,0.00046465,120]
[356526910,1742615432343,-5575.8003,0.00046465,2]
[356526911,1742615432353,-544.4943,0.00046465,2]
[356526912,1742615432362,-250.48036854,0.00046474,15]
[356526913,1742615432372,-161.94012571,0.00046474,15]
[356526914,1742615432382,-583.75814421,0.00046475,18]
[356526915,1742615432391,-7259.64039237,0.00046475,120]
[356526916,1742615432404,-7142.35960763,0.00046475,120]
[356526917,1742615432414,-150.0,0.00046548,30]
[356526918,1742615432423,-150.0,0.00046548,30]
[356526919,1742615432433,-150.73462713,0.00046548,30]
[356526920,1742615432442,-150.0,0.00046548,30]
[356526921,1742615432451,-150.2471806,0.00046548,30]
[356526922,1742615432461,-150.0,0.00046548,30]
[356526923,1742615432471,-356.1375,0.00046564,120]
[356526924,1742615432480,-157.93410203,0.00046564,120]
[356526925,1742615432490,-216.86543981,0.00046564,120]
[356526926,1742615432500,-500.0,0.00046564,120]
[356526927,1742615432509,-171.60986469,0.00046564,120]
[356526928,1742615432519,-5856.99306508,0.00046565,3]
[356526929,1742615432542,-255.39574997,0.00046565,3]
[356526930,1742615432570,-2201.20619993,0.00046565,3]
[356526931,1742615432581,-1073.90425003,0.00046565,3]
[356526938,1742615437878,-658.47843359,0.0004588,30]
[356526939,1742615437891,-4175.35911836,0.0004588,30]
[356526940,1742615437934,-1099.62597814,0.0004588,30]
[356526941,1742615437997,-717.40500148,0.0004588,30]
[356526942,1742615438009,-8338.22086084,0.0004588,30]
[356526943,1742615438022,-350.10060759,0.0004588,30]
[356526944,1742615438032,-4172.09099041,0.00046565,3]
[356526945,1742615438044,-9563.2,0.00046565,3]
[356526946,1742615438056,-3211.91999948,0.00046565,3]
[356526947,1742615438069,-433.49178807,0.00046565,3]
[356526948,1742615438081,-3961.15117566,0.00046565,3]
[356526954,1742615439985,-8894.99898994,0.00046565,3]
[356526955,1742615440041,-769.32121396,0.00046565,3]
[356526956,1742615440053,-776.34628158,0.00046565,3]
[356526957,1742615440207,-602.76063078,0.00046565,3]
[356526958,1742615440219,-500.0,0.00046565,3]
[356526959,1742615440230,-12515.99338121,0.00046565,3]
[356526962,1742615442986,-0.37973162,0.00046565,3]
[356526966,1742615444169,-10977.80729397,0.00046565,3]
[356526967,1742615446341,-3867.59999996,0.00046565,3]
[356526968,1742615446352,-2737.78682481,0.00046565,3]
[356526999,1742616632231,-164.89,0.00026849,2]
[356527000,1742616632241,-150.0,0.00029534,2]
[356527001,1742616632250,-207.03082725,0.000399,8]
[356527002,1742616632259,-1090.90898354,0.0003997,14]
[356527003,1742616632268,-302.0,0.00039976,2]
[356527004,1742616632277,-157.825,0.00039999,56]
[356527005,1742616632286,-150.0,0.00039999,4]
[356527006,1742616632295,-400.0,0.00039999,5]
[356527007,1742616632304,-3314.50894045,0.0004,2]
[356527008,1742616632326,-505.95,0.0004,2]
[356527009,1742616632338,-615.1,0.0004,2]
[356527011,1742616632349,-3168.51029453,0.0004,2]
[356527014,1742616632368,-1726.44707687,0.0004,2]
[356527029,1742616638005,-1820.88429617,0.0004,2]
[356527030,1742616638016,-24938.33902527,0.0004,2]
[356527031,1742616638055,-465.89492752,0.0004,2]
[356527032,1742616638220,-1867.89947078,0.0004,2]
[356527054,1742616643129,-267.63654024,0.0004,2]
[356527055,1742616643140,-44247.26732925,0.0004,2]
[356527059,1742616644043,-17129.63186973,0.0004,2]
[356527060,1742616644053,-3762.46089579,0.000409,2]
[356527061,1742616644062,-157.0,0.00041,14]
[356527062,1742616644071,-202.95178144,0.0004125,2]
[356527063,1742616644081,-647.20207508,0.00042,5]
[356527064,1742616644090,-560.0,0.00042666,5]
[356527065,1742616644098,-157.0,0.00043151,90]
[356527066,1742616644108,-408.27,0.00043393,2]
[356527067,1742616644117,-150.0,0.00044932,120]
[356527068,1742616644126,-535.0,0.00045,120]
[356527069,1742616644135,-600.0,0.00045,2]
[356527070,1742616644144,-156.26,0.00045035,2]
[356527071,1742616644154,-1000.0,0.00045045,2]
[356527072,1742616644163,-250.0,0.00045151,2]
[356527073,1742616644172,-150.0,0.00045206,120]
[356527074,1742616644181,-160.0,0.00045308,90]
[356527075,1742616644191,-150.0,0.00045369,2]
[356527076,1742616644201,-150.0,0.0004548,120]
[356527077,1742616644211,-324.0,0.0004551,5]
[356527078,1742616644220,-185.11,0.00045621,2]
[356527079,1742616644229,-1109.83006326,0.00045634,10]
[356527080,1742616644238,-408.27,0.00045657,2]
[356527081,1742616644248,-183.2116009,0.00045709,4]
[356527082,1742616644257,-150.0,0.00045754,120]
[356527083,1742616644266,-150.0,0.00046028,120]
[356527084,1742616644275,-168.27,0.00046275,30]
[356527085,1742616644284,-150.0,0.00046302,120]
[356527086,1742616644294,-301.01,0.00046329,30]
[356527087,1742616644303,-414.04,0.00046329,30]
[356527088,1742616644312,-157.15,0.00046329,30]
[356527089,1742616644321,-833.26,0.00046329,30]
[356527090,1742616644330,-895.04,0.00046329,30]
[356527091,1742616644340,-161.14,0.00046329,30]
[356527092,1742616644350,-308.03,0.00046329,30]
[356527093,1742616644359,-188.41,0.00046359,2]
[356527094,1742616644369,-161.34790696,0.00046465,120]
[356527095,1742616644379,-583.9046,0.00046465,2]
[356527096,1742616644388,-264.3014,0.00046474,2]
[356527097,1742616644397,-225.43233165,0.00046474,15]
[356527098,1742616644406,-5947.4785,0.00046475,2]
[356527099,1742616644415,-163.65423742,0.00046475,15]
[356527100,1742616644426,-2500.0,0.00046475,2]
[356527101,1742616644435,-150.0,0.000465,67]
[356527102,1742616644444,-150.0,0.00046548,30]
[356527103,1742616644455,-150.0,0.00046548,30]
[356527104,1742616644464,-150.0,0.00046548,30]
[356527105,1742616644474,-150.0,0.00046548,30]
[356527106,1742616644483,-2512.47,0.0004655,120]
[356527107,1742616644492,-336.52,0.0004655,31]
[356527108,1742616644502,-208.1244183,0.00046564,80]
[356527109,1742616644511,-516.69027282,0.00046564,120]
[356527110,1742616644520,-151.80580787,0.00046564,120]
[356527111,1742616644530,-268.44969574,0.00046565,38]
[356527112,1742616644539,-27394.69215235,0.00046565,38]
[356527113,1742616644549,-128217.176177,0.00046565,3]
[356527114,1742616644558,-5828.05346259,0.00046565,3]
[356527115,1742616644568,-157.19459732,0.00046573,10]
[356527116,1742616644577,-9700.0,0.00046574,120]
[356527117,1742616644587,-184.12891144,0.00046574,2]
[356527118,1742616644597,-500.0,0.00046574,120]
[356527119,1742616644607,-617.09036847,0.00046574,120]
[356527120,1742616644616,-352.4275,0.00046574,120]
[356527121,1742616644626,-642.11727036,0.00046575,5]
[356527122,1742616644635,-500.0,0.00046575,120]
[356527123,1742616644645,-504.02332553,0.00046575,120]
[356527124,1742616644655,-500.32,0.00046575,120]
[356527125,1742616644664,-500.0,0.00046575,120]
[356527126,1742616644674,-500.0,0.00046575,120]
[356527127,1742616644683,-838.0,0.00046575,120]
[356527128,1742616644693,-500.0,0.00046575,120]
[356527129,1742616644703,-500.0,0.00046575,120]
[356527130,1742616644712,-500.0,0.00046575,120]
[356527131,1742616644722,-500.0,0.00046575,120]
[356527132,1742616644732,-1508.13,0.00046575,120]
[356527133,1742616644741,-1037.89,0.00046575,120]
[356527134,1742616644750,-500.0,0.00046575,120]
[356527135,1742616644759,-500.0,0.00046575,60]
[356527136,1742616644768,-945.55,0.00046575,120]
[356527137,1742616644777,-500.0,0.00046575,120]
[356527138,1742616644787,-500.0,0.00046575,120]
[356527139,1742616644797,-500.0,0.00046575,120]
[356527140,1742616644806,-500.0,0.00046575,120]
[356527141,1742616644815,-535.75905156,0.00046575,120]
[356527142,1742616644825,-500.0,0.00046575,120]
[356527143,1742616644834,-1023.98,0.00046575,120]
[356527144,1742616644844,-919.96,0.00046575,2]
[356527145,1742616644853,-714.4,0.00046575,120]
[356527146,1742616644863,-500.0,0.00046575,120]
[356527147,1742616644872,-500.0,0.00046575,120]
[356527148,1742616644881,-500.0,0.00046575,120]
[356527149,1742616644891,-500.0,0.00046575,120]
[356527150,1742616644903,-500.0,0.00046575,120]
[356527151,1742616644912,-500.0,0.00046575,120]
[356527152,1742616644922,-500.0,0.00046575,120]
[356527153,1742616644931,-500.0,0.00046575,120]
[356527154,1742616644941,-500.0,0.00046575,120]
[356527155,1742616644951,-500.0,0.00046575,120]
[356527156,1742616644960,-601.87,0.00046575,120]
[356527157,1742616644969,-500.0,0.00046575,120]
[356527158,1742616644979,-500.0,0.00046575,120]
[356527159,1742616644988,-560.2,0.00046575,120]
[356527160,1742616644998,-500.0,0.00046575,120]
[356527161,1742616645008,-500.0,0.00046575,120]
[356527162,1742616645018,-532.60437599,0.00046575,120]
[356527163,1742616645027,-500.0,0.00046575,120]
[356527164,1742616645037,-500.0,0.00046575,120]
[356527165,1742616645046,-559.31,0.00046575,120]
[356527166,1742616645056,-500.0,0.00046575,120]
[356527167,1742616645066,-500.0,0.00046575,120]
[356527168,1742616645075,-151.0,0.00046575,14]
[356527169,1742616645085,-151.0,0.00046575,14]
[356527170,1742616645094,-500.0,0.00046575,120]
[356527171,1742616645104,-776.14,0.00046575,120]
[356527172,1742616645113,-500.0,0.00046575,120]
[356527173,1742616645123,-500.0,0.00046575,120]
[356527174,1742616645133,-500.0,0.00046575,120]
[356527175,1742616645143,-500.0,0.00046575,120]
[356527176,1742616645152,-500.0,0.00046575,120]
[356527177,1742616645161,-349.16694946,0.00046575,120]
[356527178,1742616645170,-500.0,0.00046575,120]
[356527179,1742616645179,-500.0,0.00046575,120]
[356527180,1742616645188,-500.0,0.00046575,120]
[356527181,1742616645198,-547.6306911,0.00046575,120]
[356527182,1742616645207,-500.0,0.00046575,120]
[356527183,1742616645217,-500.0,0.00046575,120]
[356527184,1742616645226,-500.0,0.00046575,120]
[356527185,1742616645235,-542.44711286,0.00046575,120]
[356527186,1742616645244,-416.87266144,0.00046575,120]
[356527187,1742616645254,-500.0,0.00046575,120]
[356527188,1742616645263,-337.5027968,0.00046575,120]
[356527189,1742616645272,-500.0,0.00046575,120]
[356527190,1742616645282,-500.0,0.00046575,120]
[356527191,1742616645291,-500.0,0.00046575,120]
[356527192,1742616645300,-500.0,0.00046575,120]
[356527193,1742616645310,-500.0,0.00046575,120]
[356527194,1742616645319,-500.0,0.00046575,120]
[356527195,1742616645328,-500.0,0.00046575,120]
[356527196,1742616645337,-500.0,0.00046575,120]
[356527197,1742616645347,-500.0,0.00046575,120]
[356527198,1742616645356,-175.92609466,0.00046575,120]
[356527199,1742616645366,-500.0,0.00046575,120]
[356527200,1742616645375,-1211.27,0.00046575,120]
[356527201,1742616645384,-500.0,0.00046575,120]
[356527202,1742616645394,-213.9599408,0.00046575,120]
[356527203,1742616645403,-500.0,0.00046575,120]
[356527204,1742616645413,-511.9983886,0.00046575,120]
[356527205,1742616645422,-500.0,0.00046575,120]
[356527206,1742616645431,-500.0,0.00046575,120]
[356527207,1742616645440,-500.0,0.00046575,120]
[356527208,1742616645449,-500.0,0.00046575,120]
[356527209,1742616645461,-500.0,0.00046575,120]
[356527210,1742616645470,-256.30782793,0.00046575,5]
[356527211,1742616645480,-500.0,0.00046575,120]
[356527212,1742616645488,-500.0,0.00046575,120]
[356527213,1742616645499,-500.0,0.00046575,120]
[356527214,1742616645508,-500.0,0.00046575,120]
[356527215,1742616645517,-500.0,0.00046575,120]
[356527216,1742616645526,-500.0,0.00046575,120]
[356527217,1742616645537,-500.0,0.00046575,120]
[356527218,1742616645547,-500.0,0.00046575,120]
[356527219,1742616645556,-500.0,0.00046575,120]
[356527220,1742616645570,-500.0,0.00046575,120]
[356527221,1742616645579,-500.0,0.00046575,120]
[356527222,1742616645588,-500.0,0.00046575,120]
[356527223,1742616645598,-582.81,0.00046575,120]
[356527224,1742616645607,-500.0,0.00046575,120]
[356527225,1742616645616,-500.0,0.00046575,120]
[356527226,1742616645626,-171.20333321,0.00046575,120]
[356527227,1742616645640,-502.95549266,0.00046575,120]
[356527228,1742616645650,-500.0,0.00046575,120]
[356527229,1742616645661,-500.0,0.00046575,120]
[356527230,1742616645670,-500.0,0.00046575,120]
[356527231,1742616645679,-500.0,0.00046575,120]
[356527232,1742616645689,-500.0,0.00046575,120]
[356527233,1742616645698,-307.07107632,0.00046575,120]
[356527234,1742616645707,-500.0,0.00046575,120]
[356527235,1742616645717,-656.16,0.00046575,120]
[356527236,1742616645726,-509.08392824,0.00046575,120]
[356527237,1742616645735,-500.0,0.00046575,120]
[356527238,1742616645745,-500.54629721,0.00046575,120]
[356527239,1742616645754,-504.66047709,0.00046575,120]
[356527240,1742616645764,-159.505276,0.00046575,120]
[356527241,1742616645773,-500.0,0.00046575,120]
[356527242,1742616645783,-501.45974901,0.00046575,120]
[356527243,1742616645792,-500.0,0.00046575,120]
[356527244,1742616645802,-500.0,0.00046575,120]
[356527245,1742616645812,-1234.484664,0.00046575,120]
[356527246,1742616645822,-500.0,0.00046575,120]
[356527247,1742616645831,-158.830351,0.00046575,120]
[356527248,1742616645840,-500.0,0.00046575,120]
[356527249,1742616645850,-500.78654727,0.00046575,120]
[356527250,1742616645859,-500.0,0.00046575,120]
[356527251,1742616645868,-500.0,0.00046575,120]
[356527252,1742616645878,-502.77567587,0.00046575,120]
[356527253,1742616645888,-513.66486321,0.00046575,120]
[356527254,1742616645897,-151.0,0.00046575,14]
[356527255,1742616645907,-152.452862,0.00046575,14]
[356527256,1742616645916,-500.0,0.00046575,120]
[356527257,1742616645925,-500.0,0.00046575,120]
[356527258,1742616645935,-500.0,0.00046575,120]
[356527259,1742616645944,-500.0,0.00046575,120]
[356527260,1742616645953,-468.44,0.00046575,120]
[356527261,1742616645963,-576.39208831,0.00046575,120]
[356527262,1742616645972,-1028.69,0.00046575,120]
[356527263,1742616645982,-500.0,0.00046575,120]
[356527264,1742616645991,-500.0,0.00046575,120]
[356527265,1742616646000,-500.0,0.00046575,120]
[356527266,1742616646010,-621.46,0.00046575,120]
[356527267,1742616646019,-500.60282316,0.00046575,120]
[356527268,1742616646028,-500.0,0.00046575,120]
[356527269,1742616646038,-500.0,0.00046575,120]
[356527270,1742616646047,-500.0,0.00046575,120]
[356527271,1742616646056,-500.0,0.00046575,120]
[356527272,1742616646066,-572.57,0.00046575,120]
[356527273,1742616646075,-614.89,0.00046575,120]
[356527274,1742616646084,-500.0,0.00046575,120]
[356527275,1742616646093,-500.0,0.00046575,120]
[356527276,1742616646102,-514.9517336,0.00046575,120]
[356527277,1742616646112,-600.45787584,0.00046575,120]
[356527278,1742616646122,-695.26,0.00046575,120]
[356527279,1742616646131,-500.0,0.00046575,120]
[356527280,1742616646140,-788.43,0.00046575,120]
[356527281,1742616646150,-500.0,0.00046575,120]
[356527282,1742616646159,-500.0,0.00046575,120]
[356527283,1742616646168,-500.0,0.00046575,120]
[356527284,1742616646178,-500.0,0.00046575,120]
[356527285,1742616646187,-500.0,0.00046575,120]
[356527286,1742616646196,-753.21,0.00046575,120]
[356527287,1742616646206,-1522.217376,0.00046575,120]
[356527288,1742616646215,-500.0,0.00046575,120]
[356527289,1742616646224,-500.0,0.00046575,120]
[356527290,1742616646234,-500.0,0.00046575,120]
[356527291,1742616646243,-1088.24,0.00046575,120]
[356527292,1742616646253,-500.0,0.00046575,120]
[356527293,1742616646262,-500.0,0.00046575,120]
[356527294,1742616646271,-514.31,0.00046575,120]
[356527295,1742616646280,-500.0,0.00046575,120]
[356527296,1742616646289,-505.64740628,0.00046575,120]
[356527297,1742616646298,-509.21895756,0.00046575,120]
[356527298,1742616646308,-1065.89,0.00046575,120]
[356527299,1742616646318,-500.0,0.00046575,120]
[356527300,1742616646327,-500.0,0.00046575,120]
[356527301,1742616646337,-500.0,0.00046575,120]
[356527302,1742616646346,-500.0,0.00046575,120]
[356527303,1742616646356,-500.0,0.00046575,120]
[356527304,1742616646365,-500.0,0.00046575,120]
[356527305,1742616646375,-500.0,0.00046575,120]
[356527306,1742616646384,-3971.32,0.00046575,120]
[356527307,1742616646394,-1087.67,0.00046575,120]
[356527308,1742616646403,-500.0,0.00046575,120]
[356527309,1742616646412,-874.36,0.00046575,120]
[356527310,1742616646423,-500.0,0.00046575,120]
[356527311,1742616646432,-938.88,0.00046575,120]
[356527312,1742616646441,-500.0,0.00046575,120]
[356527313,1742616646452,-500.0,0.00046575,120]
[356527314,1742616646464,-500.0,0.00046575,120]
[356527315,1742616646474,-500.0,0.00046575,120]
[356527316,1742616646483,-703.75,0.00046575,120]
[356527317,1742616646494,-579.9,0.00046575,120]
[356527318,1742616646505,-500.0,0.00046575,120]
[356527319,1742616646515,-500.0,0.00046575,120]
[356527320,1742616646525,-818.67,0.00046575,120]
[356527321,1742616646536,-500.0,0.00046575,120]
[356527322,1742616646545,-500.0,0.00046575,120]
[356527323,1742616646554,-500.0,0.00046575,2]
[356527324,1742616646563,-500.0,0.00046575,120]
[356527325,1742616646573,-500.0,0.00046575,120]
[356527326,1742616646582,-537.95,0.00046575,120]